bitfinex/quotes_SOLUSD_20250528
["timestamp","ask_amount","ask_price","bid_price","bid_amount"]
[1748444000571,5.84351078,171.13,170.99,25.39790988]
[1748444001097,20.45228773,171.13,170.99,25.39790988]
[1748444003905,20.45228773,171.13,171.01,24.97064886]
[1748444004210,5.84351078,171.13,171.01,32.05591597]
[1748444005494,14.60692355,171.16,171.02,5.84726932]
[1748444005807,14.60692355,171.16,171.02,6.74726932]
[1748444007607,14.60692355,171.16,171.02,0.9]
[1748444007807,14.60692355,171.16,171.02,6.74716972]
[1748444010704,5.84316933,171.14,171.02,6.74716972]
[1748444012219,5.84316933,171.14,171.03,18.64964886]
[1748444012403,5.84316933,171.14,171.05,18.64964886]
[1748444013518,20.44631381,171.18,171.05,24.49562863]
[1748444013899,20.44631381,171.18,171.07,18.64964886]
[1748444014097,20.44631381,171.18,171.07,19.54964886]
[1748444016608,36.18964886,171.17,171.06,6.2711]
[1748444016805,36.18964886,171.17,171.04,1.5467]
[1748444018218,36.18964886,171.15,171.04,1.5467]
[1748444018426,37.98870296,171.16,171.04,1.5467]
[1748444018799,36.18964886,171.15,171.04,1.5467]
[1748444020444,20.45109266,171.14,171.04,1.5467]
[1748444029540,5.84316933,171.14,171.05,18.64964886]
[1748444029721,5.84316933,171.14,171.05,25.73491597]
[1748444030232,14.60603629,171.17,171.05,25.73491597]
[1748444030922,14.60603629,171.17,171.05,31.5810868]
[1748444031219,14.60603629,171.17,171.05,36.24506321]
[1748444034024,14.60603629,171.17,171.05,37.14506321]
[1748444035225,5.84180394,171.18,171.07,18.64964886]
[1748444035425,5.84180394,171.18,171.07,19.54964886]
[1748444036943,20.44631381,171.18,171.07,19.54964886]
[1748444038612,5.84180394,171.18,171.08,1.5872]
[1748444038816,5.84112149,171.2,171.1,6.2848]
[1748444039012,5.83941605,171.25,171.11,25.73491597]
[1748444039235,5.83941605,171.25,171.11,26.63491597]
[1748444040043,20.43795619,171.25,171.11,26.63491597]
[1748444040442,67.17503648,171.25,171.11,26.63491597]
[1748444040628,36.18964886,171.22,171.1,6.2848]
[1748444040941,36.18964886,171.2,171.1,6.2848]
[1748444042024,36.18964886,171.2,171.08,1.5872]
[1748444042227,1.6129,171.19,171.03,1.56]
[1748444042538,17.54,171.17,171.03,1.56]
[1748444042743,36.18964886,171.15,171.03,1.56]
[1748444043341,20.44870296,171.16,171.03,1.56]
[1748444043342,37.98870296,171.16,171.03,1.56]
[1748444043743,5.84248656,171.16,171.04,18.64964886]
[1748444043943,5.84248656,171.16,171.04,25.73491597]
[1748444044121,5.84248656,171.16,171.06,18.64964886]
[1748444044937,5.84180394,171.18,171.06,24.4954361]
[1748444045242,5.84180394,171.18,171.06,18.64964886]
[1748444045644,20.44631381,171.18,171.06,18.64964886]
[1748444046029,20.44631381,171.18,171.06,24.4954413]
[1748444046544,20.44631381,171.18,171.06,18.64964886]
[1748444047117,20.44631381,171.18,171.05,6.5534]
[1748444047355,36.18964886,171.17,171.05,6.5534]
[1748444048048,37.98631381,171.18,171.05,6.5534]
[1748444049031,36.18964886,171.15,171.05,6.5534]
[1748444049764,36.18964886,171.15,171.03,1.56]
[1748444050055,1.6092,171.14,171.01,6.5848]
[1748444050753,36.18964886,171.13,171.01,6.5848]
[1748444050955,37.99348292,171.12,171.01,6.5848]
[1748444053455,20.45348292,171.12,171.01,6.5848]
[1748444054851,37.99348292,171.12,171.01,6.5848]
[1748444055759,20.45348292,171.12,171.01,6.5848]
[1748444057139,14.60963066,171.12,171.01,6.5848]
[1748444057692,14.60963066,171.12,171.01,12.43238584]
[1748444057971,5.84351078,171.13,171.02,18.64964886]
[1748444059254,14.60778998,171.15,171.02,24.49666704]
[1748444059564,14.60778998,171.15,171.02,18.64964886]
[1748444061050,14.60778998,171.15,171.02,24.4969159]
[1748444061740,20.4506179,171.15,171.02,24.4969159]
[1748444062142,20.4506179,171.15,171.02,18.64964886]
[1748444062340,36.18964886,171.14,171.01,7.4848]
[1748444062539,36.18964886,171.14,171.01,6.5848]
[1748444063036,25.1633,171.13,171.01,6.5848]
[1748444063861,20.45348292,171.12,171.01,6.5848]
[1748444066566,20.45348292,171.12,171.01,7.4848]
[1748444071661,67.21274425,171.12,171.01,7.4848]
[1748444072560,36.18964886,171.11,171.01,6.5848]
[1748444073158,36.18964886,171.11,171.0,1.5809]
[1748444073536,37.99587374,171.1,171.0,1.5809]
[1748444075469,37.99587374,171.1,171.0,1.5809]
[1748444076374,36.18964886,171.09,170.98,7.37397126]
[1748444076548,49.67855053,171.1,170.97,6.023]
[1748444076549,36.18964886,171.07,170.97,6.023]
[1748444076744,36.18964886,171.07,170.96,1.6483]
[1748444077653,1.5836,171.08,170.96,1.6483]
[1748444078259,20.45946103,171.07,170.96,1.6483]
[1748444079063,5.84556029,171.07,170.96,1.6483]
[1748444079378,5.84556029,171.07,170.98,6.4287]
[1748444080376,14.6119419,171.1,170.98,6.4287]
[1748444082555,36.18964886,171.09,170.98,6.4287]
[1748444082777,36.18964886,171.09,170.96,1.6483]
[1748444084560,36.18964886,171.07,170.96,1.6483]
[1748444085097,1.5532,171.06,170.96,1.6483]
[1748444085892,1.5532,171.06,170.94,7.3099]
[1748444085893,36.18964886,171.05,170.94,7.3099]
[1748444086192,42.23144886,171.05,170.92,2.4287]
[1748444086353,77.33144886,171.05,170.9,6.42903627]
[1748444086758,36.18964886,171.03,170.9,6.42903627]
[1748444088660,36.18964886,171.01,170.9,6.42903627]
[1748444088861,36.18964886,171.01,170.9,6.3515]
[1748444090286,36.18964886,170.99,170.88,1.5287]
[1748444090467,36.18964886,170.99,170.87,0.9]
[1748444090674,20.47023042,170.98,170.87,0.9]
[1748444096190,20.47023042,170.98,170.86,6.9833]
[1748444097793,36.18964886,170.97,170.86,6.0833]
[1748444097997,36.18964886,170.97,170.84,1.6174]
[1748444098702,38.01262516,170.96,170.84,1.6174]
[1748444098882,67.25923255,170.96,170.84,1.6174]
[1748444099278,18.64964886,170.93,170.83,0.9]
[1748444099479,18.64964886,170.93,170.82,6.5375]
[1748444100596,20.47741633,170.92,170.82,6.5375]
[1748444100780,17.54,170.91,170.82,6.5375]
[1748444100982,20.47741633,170.92,170.79,2.63393627]
[1748444100983,17.54,170.89,170.79,1.73393627]
[1748444101397,17.54,170.91,170.79,1.73393627]
[1748444102881,38.01981275,170.9,170.79,1.73393627]
[1748444104170,38.01981275,170.9,170.79,1.6564]
[1748444105187,38.01981275,170.9,170.78,6.6299]
[1748444105400,17.54,170.88,170.77,0.3]
[1748444105697,72.95544886,170.89,170.77,0.3]
[1748444105900,54.3058,170.89,170.77,0.3]
[1748444106075,53.74964886,170.88,170.77,0.3]
[1748444106282,18.64964886,170.88,170.77,0.3]
[1748444106813,36.18964886,170.88,170.77,0.3]
[1748444107111,29.25417142,170.92,170.77,0.3]
[1748444107112,36.18964886,170.86,170.77,0.3]
[1748444107278,7.8937,170.85,170.77,0.3]
[1748444109305,18.64964886,170.83,170.77,0.3]
[1748444111220,20.48940404,170.82,170.77,0.3]
[1748444115002,14.6352886,170.82,170.77,0.3]
[1748444115893,5.85343011,170.84,170.77,0.3]
[1748444116608,20.48700538,170.84,170.77,0.3]
[1748444118911,20.48700538,170.84,170.78,6.1403]
[1748444119292,14.63357527,170.84,170.78,6.1403]
[1748444121088,14.63357527,170.84,170.77,0.3]
[1748444122599,29.26086117,170.88,170.77,0.3]
[1748444122916,20.48101116,170.89,170.77,0.3]
[1748444123117,20.48101116,170.89,170.79,6.6198]
[1748444124907,14.62929369,170.89,170.79,6.6198]
[1748444125739,14.62929369,170.89,170.77,0.3]
[1748444125740,36.18964886,170.86,170.77,0.3]
[1748444126011,17.54,170.81,170.77,0.3]
[1748444126811,5.85480093,170.8,170.77,0.3]
[1748444128792,14.63699745,170.81,170.77,0.3]
[1748444131914,5.85377275,170.83,170.77,0.3]
[1748444132418,20.48820464,170.83,170.77,0.3]
[1748444132912,14.63443189,170.83,170.77,0.3]
[1748444136105,5.8530875,170.85,170.78,6.2607]
[1748444136417,20.48580625,170.85,170.78,6.2607]
[1748444137195,38.02220973,170.88,170.78,6.2607]
[1748444137627,18.64964886,170.87,170.78,6.2607]
[1748444137802,17.54,170.84,170.77,0.3]
[1748444138793,18.64964886,170.83,170.77,0.3]
[1748444138993,17.54,170.8,170.77,0.3]
[1748444139397,5.85514374,170.79,170.77,0.3]
[1748444143515,20.49142799,170.81,170.77,0.3]
[1748444147331,14.63696983,170.81,170.77,0.3]
[1748444149536,38.02580625,170.85,170.77,0.3]
[1748444150718,20.48580625,170.85,170.77,1.9265]
[1748444151532,20.48101116,170.89,170.77,1.9265]
[1748444151708,38.02101116,170.89,170.77,1.9265]
[1748444153618,49.74250935,170.88,170.77,1.9265]
[1748444155427,49.74250935,170.88,170.77,2.8265]
[1748444160432,67.28250935,170.88,170.77,2.8265]
[1748444161340,67.28250935,170.88,170.77,1.9265]
[1748444162428,67.28250935,170.88,170.77,0.3]
[1748444162657,17.54,170.86,170.77,0.3]
[1748444162947,96.54280897,170.88,170.77,0.3]
[1748444166370,19.0552,170.86,170.77,0.3]
[1748444167663,17.54,170.84,170.77,0.3]
[1748444167954,67.29706842,170.83,170.77,0.3]
[1748444169855,20.48820464,170.83,170.77,0.3]
[1748444171255,20.48460727,170.86,170.77,0.3]
[1748444173539,20.48460727,170.86,170.71,55.85783816]
[1748444173540,17.54,170.74,170.59,0.2003]
[1748444173738,52.66,170.72,170.59,0.2003]
[1748444174243,17.54,170.7,170.59,0.2003]
[1748444174439,22.27457,170.7,170.59,0.2003]
[1748444174661,17.54,170.7,170.59,0.2003]
[1748444175244,17.54,170.68,170.59,0.2003]
[1748444176334,17.54,170.66,170.59,0.2003]
[1748444177262,5.85994726,170.65,170.59,0.2003]
[1748444177462,23.39994726,170.65,170.59,0.2003]
[1748444178068,38.04981541,170.65,170.59,0.2003]
[1748444178867,38.04981541,170.65,170.61,0.07753627]
[1748444181656,73.16981541,170.65,170.61,0.07753627]
[1748444183464,23.40063412,170.63,170.61,0.07753627]
[1748444184145,36.18964886,170.62,170.61,0.07753627]
[1748444185375,42.05062647,170.62,170.61,0.07753627]
[1748444188462,23.40097761,170.62,170.61,0.07753627]
[1748444188655,5.86097761,170.62,170.61,0.07753627]
[1748444189582,5.86063412,170.63,170.61,0.07753627]
[1748444190675,5.85926056,170.67,170.61,0.07753627]
[1748444191052,60.3557,170.66,170.59,0.2003]
[1748444191565,17.54,170.64,170.59,0.2003]
[1748444191764,20.50981541,170.65,170.59,0.2003]
[1748444193082,67.34955171,170.65,170.59,0.2003]
[1748444193280,102.46955171,170.65,170.59,0.2003]
[1748444193778,3.035731,170.64,170.59,0.2003]
[1748444193957,17.54,170.63,170.59,0.2003]
[1748444194156,52.66,170.63,170.59,0.2003]
[1748444194788,35.12,170.6,170.59,0.2003]
[1748444194968,52.66,170.6,170.59,0.2003]
[1748444195291,17.54,170.6,170.59,0.2003]
[1748444195885,23.40166471,170.6,170.59,0.2003]
[1748444196562,17.54,170.58,170.56,0.1754386]
[1748444196880,17.54,170.58,170.55,50.0]
[1748444197208,17.54,170.56,170.55,19.33203261]
[1748444197377,17.54,170.58,170.55,19.33203261]
[1748444197694,49.82415005,170.6,170.55,19.33203261]
[1748444197871,29.30832356,170.6,170.55,19.33203261]
[1748444199196,49.81539002,170.63,170.55,19.33203261]
[1748444200666,20.51221942,170.63,170.55,19.33203261]
[1748444200997,20.51221942,170.63,170.56,1.65]
[1748444202483,49.8068134,170.66,170.56,1.65]
[1748444202670,36.18964886,170.65,170.56,1.65]
[1748444203082,71.30964886,170.65,170.55,19.33203261]
[1748444204418,20.51101734,170.64,170.55,19.33203261]
[1748444204997,20.51101734,170.64,170.56,6.1624]
[1748444206200,20.51101734,170.64,170.55,19.33203261]
[1748444206402,14.65072667,170.64,170.56,7.8637]
[1748444210127,5.85994726,170.65,170.56,7.8637]
[1748444210714,14.64862769,170.67,170.56,7.8637]
[1748444213098,50.83827655,170.67,170.56,7.8637]
[1748444213826,32.18862769,170.67,170.56,7.8637]
[1748444214017,14.64862769,170.67,170.56,7.8637]
[1748444215298,14.64862769,170.67,170.39,50.0]
[1748444215299,35.12,170.54,170.39,50.0]
[1748444215736,18.64964886,170.5,170.39,50.0]
[1748444216052,53.76964886,170.5,170.39,50.0]
[1748444216643,30.0,170.48,170.39,50.0]
[1748444216811,18.64964886,170.47,170.39,50.0]
[1748444217232,20.53267627,170.46,170.39,50.0]
[1748444217739,48.64964886,170.45,170.39,50.0]
[1748444219263,5.86716733,170.44,170.39,50.0]
[1748444221362,24.51543956,170.48,170.39,50.0]
[1748444221562,5.8657907,170.48,170.4,6.5922]
[1748444221957,5.86510263,170.5,170.4,6.5922]
[1748444222363,18.64964886,170.49,170.4,6.5922]
[1748444222670,20.52785922,170.5,170.4,6.5922]
[1748444223269,18.64964886,170.49,170.4,6.5922]
[1748444223569,20.53026747,170.48,170.4,6.5922]
[1748444224179,5.8657907,170.48,170.4,6.5922]
[1748444225499,20.52691316,170.51,170.4,6.5922]
[1748444226388,55.64691316,170.51,170.4,6.5922]
[1748444226590,20.52691316,170.51,170.4,6.5922]
[1748444228579,14.6621545,170.51,170.4,6.5922]
[1748444233126,32.2021545,170.51,170.4,6.5922]
[1748444233291,17.54,170.49,170.4,6.5922]
[1748444233907,20.53026747,170.48,170.4,6.5922]
[1748444235781,5.8657907,170.48,170.4,6.5922]
[1748444235980,14.66232368,170.51,170.4,6.5922]
[1748444238085,67.38167936,170.54,170.4,6.5922]
[1748444238273,17.54,170.52,170.4,6.5922]
[1748444238814,17.54,170.5,170.4,6.5922]
[1748444239993,17.54,170.51,170.4,6.5922]
[1748444240186,20.52785922,170.5,170.4,6.5922]
[1748444240604,67.39337241,170.5,170.4,6.5922]
[1748444242801,17.54,170.46,170.39,50.0]
[1748444244278,20.53388089,170.45,170.39,50.0]
[1748444246891,14.66705778,170.45,170.39,50.0]
[1748444247987,17.5424522,170.45,170.39,50.0]
[1748444248894,23.40927531,170.45,170.39,50.0]
[1748444256395,40.94927531,170.45,170.39,50.0]
[1748444256604,17.54,170.44,170.39,50.0]
[1748444256826,17.54,170.42,170.39,50.0]
[1748444257198,36.18964886,170.42,170.39,50.0]
[1748444257552,23.40820022,170.41,170.39,50.0]
[1748444258213,5.86820022,170.41,170.39,50.0]
[1748444259713,52.66,170.4,170.39,50.0]
[1748444260001,17.54,170.4,170.39,50.0]
[1748444260618,5.86820022,170.41,170.39,50.0]
[1748444261629,14.66967481,170.42,170.39,50.0]
[1748444262623,5.86716733,170.44,170.39,50.0]
[1748444263205,14.66494431,170.48,170.39,50.0]
[1748444263428,14.66189666,170.51,170.39,50.0]
[1748444263810,20.52665532,170.51,170.39,50.0]
[1748444267829,49.85044864,170.51,170.39,50.0]
[1748444268822,20.52665532,170.51,170.39,50.0]
[1748444271942,20.52665532,170.51,170.4,7.9658]
[1748444272320,29.32133387,170.53,170.4,7.9658]
[1748444274031,32.24376965,170.53,170.4,7.9658]
[1748444274231,52.76801757,170.53,170.4,7.9658]
[1748444275656,20.52424792,170.53,170.4,7.9658]
[1748444276357,14.66017709,170.53,170.4,7.9658]
[1748444277056,14.66017709,170.53,170.39,47.06965291]
[1748444277057,41.1707,170.44,170.39,47.06965291]
[1748444277352,17.54,170.4,170.39,47.06965291]
[1748444277649,43.35989188,170.4,170.39,47.06965291]
[1748444278431,49.22843648,170.4,170.39,47.06965291]
[1748444280252,84.34843648,170.4,170.39,47.06965291]
[1748444280841,49.22843648,170.4,170.39,47.06965291]
[1748444281540,59.12843648,170.4,170.39,47.06965291]
[1748444282548,15.7685446,170.4,170.39,47.06965291]
[1748444283940,33.3085446,170.4,170.39,47.06965291]
[1748444284334,51.95819346,170.4,170.39,47.06965291]
[1748444285548,89.41819346,170.4,170.39,47.06965291]
[1748444286535,124.53819346,170.4,170.39,1e-08]
[1748444287039,131.79788518,170.4,170.39,1e-08]
[1748444287738,131.79788518,170.4,170.25,1.5321]
[1748444287739,18.64964886,170.39,170.18,6.0]
[1748444287941,52.66,170.27,170.18,6.0]
[1748444288136,17.54,170.25,170.18,6.0]
[1748444288336,38.00070115,170.28,170.18,6.0]
[1748444288533,20.55679547,170.26,170.18,6.0]
[1748444288838,18.64964886,170.25,170.18,6.0]
[1748444289365,36.18964886,170.23,170.18,6.0]
[1748444290233,18.64964886,170.23,170.18,6.0]
[1748444290456,36.18964886,170.23,170.18,6.0]
[1748444290639,42.06405407,170.23,170.18,6.0]
[1748444291426,5.87440521,170.23,170.18,6.0]
[1748444292442,42.15405407,170.23,170.18,6.0]
[1748444294158,5.87440521,170.23,170.18,6.0]
[1748444294838,5.87406015,170.24,170.18,6.0]
[1748444296457,5.87406015,170.24,170.18,7.5334]
[1748444297337,5.87406015,170.24,170.17,614.33004545]
[1748444297338,52.75,170.23,170.17,592.62454545]
[1748444297646,17.63,170.23,170.17,592.62454545]
[1748444297840,23.61917258,170.24,170.17,592.62454545]
[1748444298039,20.55921052,170.24,170.18,18.64964886]
[1748444298234,46.99494641,170.28,170.18,18.64964886]
[1748444298435,67.55071414,170.27,170.17,592.62454545]
[1748444300241,67.55071414,170.27,170.17,592.62454545]
[1748444303051,67.55071414,170.27,170.18,18.64964886]
[1748444303247,67.55071414,170.27,170.17,592.62454545]
[1748444303248,35.12,170.26,170.17,592.62454545]
[1748444303444,67.55071414,170.27,170.17,592.62454545]
[1748444303860,67.55071414,170.27,170.18,18.64964886]
[1748444304245,67.55071414,170.27,170.17,592.62454545]
[1748444304443,140.09719377,170.27,170.17,592.62454545]
[1748444304654,52.75,170.25,170.17,592.62454545]
[1748444304860,52.75,170.23,170.17,592.62454545]
[1748444305057,59.74608061,170.23,170.17,577.94440682]
[1748444305270,17.63,170.21,170.17,563.26426819]
[1748444305644,17.63,170.21,170.17,548.58412956]
[1748444306144,52.75,170.21,170.17,533.90399093]
[1748444306566,17.63,170.19,170.17,533.90399093]
[1748444306872,17.63,170.19,170.17,519.2238523]
[1748444307172,17.63,170.19,170.17,504.54371367]
[1748444307355,17.63,170.19,170.17,489.86357504]
[1748444307755,17.63,170.19,170.17,484.25182299]
[1748444307969,17.63,170.19,170.17,474.32582299]
[1748444308153,52.75,170.19,170.17,474.32582299]
[1748444308687,58.62613115,170.18,170.17,474.32582299]
[1748444310164,62.27973008,170.18,170.17,474.32582299]
[1748444311049,58.62613115,170.18,170.17,474.32582299]
[1748444314672,23.50613115,170.18,170.17,474.32582299]
[1748444318491,58.62613115,170.18,170.17,474.32582299]
[1748444320277,87.71275228,170.18,170.17,469.59723812]
[1748444320475,104.96924145,170.18,170.17,469.59723812]
[1748444320880,94.96924145,170.18,170.17,469.59723812]
[1748444321072,104.96924145,170.18,170.17,469.59723812]
[1748444321266,124.96924145,170.18,170.17,469.59723812]
[1748444321469,128.03169962,170.18,170.17,469.59723812]
[1748444321681,138.03169962,170.18,170.17,469.59723812]
[1748444321984,108.03169962,170.18,170.17,469.59723812]
[1748444322881,98.03169962,170.18,170.17,469.59723812]
[1748444323089,87.39194952,170.18,170.17,469.59723812]
[1748444323260,78.74230066,170.18,170.17,361.45861196]
[1748444323460,94.32949135,170.18,170.17,358.39546308]
[1748444323953,84.32949135,170.18,170.17,358.39546308]
[1748444324157,94.32949135,170.18,170.17,358.39546308]
[1748444324600,97.39212458,170.18,170.17,358.39546308]
[1748444324803,105.47175733,170.18,170.17,358.39546308]
[1748444325483,76.82210847,170.18,170.17,358.39546308]
[1748444325691,61.68876438,170.18,170.17,358.39546308]
[1748444326263,80.33841324,170.18,170.17,358.39546308]
[1748444326460,90.33841324,170.18,170.17,358.39546308]
[1748444326686,128.93493357,170.18,170.17,358.39546308]
[1748444327194,118.93493357,170.18,170.17,358.39546308]
[1748444327394,61.68876438,170.18,170.17,358.39546308]
[1748444328601,26.56876438,170.18,170.17,358.39546308]
[1748444330692,26.56876438,170.18,170.17,340.77546308]
[1748444330996,80.33841324,170.18,170.17,340.77546308]
[1748444331204,109.12039639,170.18,170.17,340.77546308]
[1748444331615,99.12039639,170.18,170.17,340.77546308]
[1748444332102,109.12039639,170.18,170.17,340.77546308]
[1748444332610,99.12039639,170.18,170.17,340.77546308]
[1748444332909,109.12039639,170.18,170.17,340.77546308]
[1748444333587,100.52387606,170.18,170.17,340.77546308]
[1748444333790,90.52387606,170.18,170.17,340.77546308]
[1748444334202,71.8742272,170.18,170.17,340.77546308]
[1748444334583,90.52387606,170.18,170.17,340.77546308]
[1748444335218,100.52387606,170.18,170.17,340.77546308]
[1748444336298,100.52387606,170.18,170.17,311.49546308]
[1748444336811,100.52387606,170.18,170.17,308.49546308]
[1748444337187,90.52387606,170.18,170.17,293.80410506]
[1748444337513,100.52387606,170.18,170.17,279.11274704]
[1748444338014,100.52387606,170.18,170.17,264.42138902]
[1748444338215,100.52387606,170.18,170.17,249.730031]
[1748444338419,108.64372972,170.18,170.17,235.03867298]
[1748444338719,138.64372972,170.18,170.17,220.34731496]
[1748444339095,138.64372972,170.18,170.17,205.65595694]
[1748444339399,138.64372972,170.18,170.17,191.14412076]
[1748444340005,128.64372972,170.18,170.17,191.14412076]
[1748444340323,119.99408086,170.18,170.17,191.14412076]
[1748444340609,109.99408086,170.18,170.17,191.14412076]
[1748444341195,119.99408086,170.18,170.17,191.14412076]
[1748444341403,79.99408086,170.18,170.17,191.14412076]
[1748444341694,44.87408086,170.18,170.17,191.14412076]
[1748444342020,26.56876438,170.18,170.17,191.14412076]
[1748444342716,8.93876438,170.18,170.17,191.14412076]
[1748444343090,8.93876438,170.18,170.17,192.67402076]
[1748444343499,5.87613115,170.18,170.17,192.67402076]
[1748444344309,14.6885478,170.21,170.17,192.67402076]
[1748444347314,29.37374324,170.23,170.17,192.67402076]
[1748444349319,29.37374324,170.23,170.18,6.6651]
[1748444369241,44.05286343,170.25,170.19,18.64964886]
[1748444369442,14.68428781,170.25,170.19,18.64964886]
[1748444370546,5.87337013,170.26,170.19,18.64964886]
[1748444370729,5.87337013,170.26,170.18,6.6651]
[1748444370730,5.87337013,170.26,170.23,18.64964886]
[1748444371133,5.87233542,170.29,170.23,23.25691301]
[1748444371344,5.87233542,170.29,170.25,18.64964886]
[1748444371657,52.75,170.22,170.17,167.10412076]
[1748444371948,71.39964886,170.18,170.17,133.84527021]
[1748444372154,96.85126618,170.18,170.17,133.84527021]
[1748444372338,114.52876774,170.18,170.17,133.84527021]
[1748444372648,114.52876774,170.18,170.17,132.17867021]
[1748444373039,144.52876774,170.18,170.17,132.17867021]
[1748444373550,182.56876774,170.18,170.17,132.17867021]
[1748444375536,168.12999046,170.18,170.17,132.17867021]
[1748444375850,111.4403416,170.18,170.17,132.17867021]
[1748444376057,149.4203416,170.18,170.17,132.17867021]
[1748444376646,111.4403416,170.18,170.17,132.17867021]
[1748444376855,149.4203416,170.18,170.17,132.17867021]
[1748444377453,111.4403416,170.18,170.17,132.17867021]
[1748444377635,149.4203416,170.18,170.17,132.17867021]
[1748444380738,53.50613115,170.18,170.17,132.17867021]
[1748444380965,64.02613115,170.18,170.17,132.17867021]
[1748444381137,84.33613115,170.18,170.17,132.17867021]
[1748444382366,5.87613115,170.18,170.17,132.17867021]
[1748444382661,37.9,170.18,170.17,132.17867021]
[1748444383045,10.52,170.19,170.17,132.17867021]
[1748444383359,37.9,170.18,170.17,132.17867021]
[1748444383857,10.52,170.19,170.17,132.17867021]
[1748444384198,37.88,170.18,170.17,132.17867021]
[1748444384662,5.87544065,170.2,170.17,132.17867021]
[1748444384838,37.88,170.19,170.17,132.17867021]
[1748444385462,5.87544065,170.2,170.17,132.17867021]
[1748444385759,37.86,170.19,170.17,132.17867021]
[1748444386762,5.87613115,170.18,170.17,132.17867021]
[1748444387658,43.7358681,170.19,170.17,132.17867021]
[1748444388961,37.78,170.18,170.17,132.17867021]
[1748444390143,37.76,170.18,170.17,132.17867021]
[1748444390340,5.87519824,170.21,170.17,132.17867021]
[1748444390543,37.76,170.2,170.17,132.17867021]
[1748444391962,5.87578588,170.19,170.17,132.17867021]
[1748444392145,37.72,170.18,170.17,132.17867021]
[1748444394670,43.59613115,170.18,170.17,132.17867021]
[1748444395346,37.66,170.18,170.17,132.17867021]
[1748444395745,43.53613115,170.18,170.17,132.17867021]
[1748444400349,43.97261056,170.18,170.17,132.17867021]
[1748444400853,61.60261056,170.18,170.17,132.17867021]
[1748444401052,180.94462371,170.18,170.17,132.17867021]
[1748444401253,189.26078875,170.18,170.17,132.17867021]
[1748444401455,224.38078875,170.18,170.17,130.51327021]
[1748444401660,254.38078875,170.18,170.17,130.51327021]
[1748444401857,264.38078875,170.18,170.17,130.51327021]
[1748444402281,270.25488875,170.18,170.17,130.51327021]
[1748444402642,260.25488875,170.18,170.17,130.51327021]
[1748444403149,270.25488875,170.18,170.17,130.51327021]
[1748444404564,104.26320046,170.16,170.15,5.22083437]
[1748444404755,182.38320046,170.16,170.15,5.22083437]
[1748444404964,188.93204416,170.16,170.15,5.22083437]
[1748444405169,198.93204416,170.16,170.15,5.22083437]
[1748444405469,207.2482092,170.16,170.15,5.22083437]
[1748444405875,197.2482092,170.16,170.15,5.22083437]
[1748444406168,207.2482092,170.16,170.15,5.22083437]
[1748444407165,42.15750696,170.13,170.11,0.1754386]
[1748444407477,222.91305366,170.12,170.11,0.1754386]
[1748444407678,80.63388803,170.12,170.11,0.1754386]
[1748444409152,86.51209165,170.12,170.11,0.1754386]
[1748444409458,86.47209165,170.12,170.11,0.1754386]
[1748444411077,22.93244279,170.12,170.11,0.1754386]
[1748444411261,60.45244279,170.12,170.11,0.1754386]
[1748444411975,105.04825669,170.12,170.11,0.1754386]
[1748444413771,86.39860783,170.12,170.11,0.1754386]
[1748444413957,22.93244279,170.12,170.11,0.1754386]
[1748444414778,53.61820362,170.12,170.11,0.1754386]
[1748444415783,5.87820362,170.12,170.11,0.1754386]
[1748444416281,53.59820362,170.12,170.11,0.1754386]
[1748444417470,5.87820362,170.12,170.11,0.1754386]
[1748444417665,53.57820362,170.12,170.11,0.1754386]
[1748444422690,53.57820362,170.12,170.11,0.1754386]
[1748444423265,16.13820362,170.12,170.11,0.1754386]
[1748444423464,53.55820362,170.12,170.11,0.1754386]
[1748444424291,53.53820362,170.12,170.11,0.1754386]
[1748444424699,16.13820362,170.12,170.11,0.1754386]
[1748444424880,53.53820362,170.12,170.11,0.1754386]
[1748444425281,53.51820362,170.12,170.11,0.1754386]
[1748444426374,167.54807833,170.16,170.09,1.6311]
[1748444426575,167.54807833,170.16,170.1,18.64964886]
[1748444426576,10.26,170.15,170.1,18.64964886]
[1748444426794,37.38,170.14,170.1,18.64964886]
[1748444426995,37.38,170.13,170.1,18.64964886]
[1748444427296,35.7134,170.13,170.1,18.64964886]
[1748444427596,37.38,170.12,170.1,18.64964886]
[1748444428378,37.38,170.12,170.09,1.6311]
[1748444428573,5.87854917,170.11,170.09,1.6311]